[Event "White Rook U14 Final 2019"]
[Site "Sochi"]
[Date "2019.06.08"]
[Round "7.12"]
[White "Namay, Viktoria"]
[Black "Toledo Flores, Marianna"]
[Result "1-0"]
[ECO "D36"]
[WhiteElo "1359"]
[BlackElo "1530"]
[Annotator "NA"]
[PlyCount "97"]
[EventDate "2019.06.02"]
[EventCountry "RUS"]
[SourceTitle "playchess.com"]
[Source "ChessBase"]
[SourceQuality "1"]
[TimeControl "5400+30"]

1. d4 {[%emt 0:00:00]} d5 {[%emt 0:00:00]} 2. c4 {[%emt 0:00:00]} e6 {[%emt 0:00:00]} 3. Nc3 {[%emt 0:00:00]} Nf6 {[%emt 0:00:00]} 4. cxd5 {[%emt 0:00:00]} exd5 {[%emt 0:00:00]} 5. Bg5 {[%emt 0:00:00]} Nbd7 {[%emt 0:00:00]} 6. e3 {[%emt 0:01:00]} c6 {[%emt 0:00:00]} 7. Bd3 {[%emt 0:00:00]} Be7 {[%emt 0:00:19]} 8. Nge2 {[%emt 0:00:00]} O-O {[%emt 0:04:55]} 9. O-O {[%emt 0:01:29]} Re8 {[%emt 0:00:12]} 10. Qc2 {[%emt 0:00:00]} Nf8 {[%emt 0:00:09]} 11. f3 {[%emt 0:01:16]} Ng6 {[%emt 0:03:18]} 12. e4 {[%emt 0:06:18]} Be6 {[%emt 0:01:19]} 13. e5 {[%emt 0:00:00]} Nd7 {[%emt 0:00:16]} 14. Bxe7 {[%emt 0:00:44]} Qxe7 {[%emt 0:00:27]} 15. f4 {[%emt 0:00:00]} Bg4 {[%emt 0:01:41]} 16. Ng3 {[%emt 0:01:46]} Qh4 {[%emt 0:01:11]} 17. f5 {[%emt 0:01:21]} Ngf8 {[%emt 0:00:15]} 18. Rf4 {[%emt 0:00:26]} Qg5 {[%emt 0:02:04]} 19. Qf2 {[%emt 0:01:39]} Rac8 {[%emt 0:03:51]} 20. h3 {[%emt 0:15:57]} Bh5 {[%emt 0:01:13]} 21. Nxh5 {[%emt 0:11:15]} Qxh5 {[%emt 0:00:16]} 22. f6 {[%emt 0:10:20]} g6 {[%emt 0:01:10]} 23. h4 {[%emt 0:04:19]} Ne6 {[%emt 0:01:05]} 24. Rf3 {[%emt 0:07:32]} Nc7 {[%emt 0:13:46]} 25. Rf4 {[%emt 0:07:26]} Ne6 {[%emt 0:06:21]} 26. Rf3 {[%emt 0:05:05]} Qg4 {[%emt 0:00:40]} 27. Ne2 {[%emt 0:02:41]} Kh8 {[%emt 0:00:40]} 28. Nf4 {[%emt 0:00:30]} c5 {[%emt 0:00:36]} 29. Nxe6 {[%emt 0:00:31]} Rxe6 {[%emt 0:03:06]} 30. Rf4 {[%emt 0:03:05]} Qh5 {[%emt 0:09:45]} 31. Be2 {[%emt 0:04:04]} Qh6 {[%emt 0:01:26]} 32. Bg4 {[%emt 0:01:28]} Rce8 {[%emt 0:00:29]} 33. Bxe6 {[%emt 0:00:23]} Rxe6 {[%emt 0:01:41]} 34. dxc5 {[%emt 0:00:34]} Nxe5 {[%emt 0:00:10]} 35. Rd1 {[%emt 0:00:37]} Qf8 {[%emt 0:00:18]} 36. Rxd5 {[%emt 0:02:57]} h5 {[%emt 0:00:54]} 37. Qd2 {[%emt 0:01:07]} Nc6 {[%emt 0:03:19]} 38. b4 {[%emt 0:01:02]} a6 {[%emt 0:01:55]} 39. a4 {[%emt 0:00:41]} Kh7 {[%emt 0:00:12]} 40. Rd6 {[%emt 0:00:37]} Qe8 {[%emt 0:00:30]} 41. Rf1 {[%emt 0:00:58]} Re2 {[%emt 0:00:33]} 42. Qd5 {[%emt 0:01:45]} Qe3+ {[%emt 0:00:32]} 43. Kh1 {[%emt 0:00:01]} Ne5 {[%emt 0:00:57]} 44. Rd7 {[%emt 0:03:21]} Qg3 {[%emt 0:05:45]} 45. Rxf7+ {[%emt 0:00:13]} Kh6 {[%emt 0:00:06]} 46. Rh7+ {[%emt 0:00:25]} Kxh7 {[%emt 0:04:12]} 47. Qxb7+ {[%emt 0:00:30]} Nd7 {[%emt 0:00:14]} 48. Qxd7+ {[%emt 0:01:39]} Re7 {[%emt 0:00:52]} 49. Qxe7+ {[%emt 0:00:50]} 1-0

[Event "White Rook U14 Final 2019"]
[Site "Sochi"]
[Date "2019.06.08"]
[Round "7.13"]
[White "Kurus, Artem"]
[Black "Voloshkin, Daniil"]
[Result "1/2-1/2"]
[ECO "E12"]
[WhiteElo "1769"]
[BlackElo "1557"]
[Annotator "NA"]
[PlyCount "45"]
[EventDate "2019.06.02"]
[EventCountry "RUS"]
[SourceTitle "playchess.com"]
[Source "ChessBase"]
[SourceQuality "1"]
[TimeControl "5400+30"]

1. d4 {[%emt 0:00:00]} Nf6 {[%emt 0:00:00]} 2. c4 {[%emt 0:00:00]} e6 {[%emt 0:00:00]} 3. Nf3 {[%emt 0:00:00]} b6 {[%emt 0:00:00]} 4. Bf4 {[%emt 0:00:00]} Bb7 {[%emt 0:00:21]} 5. a3 {[%emt 0:00:00]} d5 {[%emt 0:05:37]} 6. cxd5 {[%emt 0:00:00]} Nxd5 {[%emt 0:00:07]} 7. Bg3 {[%emt 0:00:00]} Nd7 {[%emt 0:02:10]} 8. Qc2 {[%emt 0:01:07]} Rc8 {[%emt 0:07:10]} 9. e4 {[%emt 0:19:54]} N5f6 {[%emt 0:01:57]} 10. Nc3 {[%emt 0:06:19]} c5 {[%emt 0:22:28]} 11. d5 {[%emt 0:04:11]} exd5 {[%emt 0:18:52]} 12. exd5 {[%emt 0:00:46]} Nxd5 {[%emt 0:08:06]} 13. O-O-O {[%emt 0:08:31]} Nxc3 {[%emt 0:12:15]} 14. Qxc3 {[%emt 0:00:23]} Qf6 {[%emt 0:06:06]} 15. Re1+ {[%emt 0:04:28]} Be7 {[%emt 0:00:42]} 16. Qxf6 {[%emt 0:00:33]} Nxf6 {[%emt 0:00:31]} 17. Bd6 {[%emt 0:02:49]} Ng8 {[%emt 0:00:03]} 18. Bb5+ {[%emt 0:01:24]} Bc6 {[%emt 0:02:26]} 19. Ba6 {[%emt 0:14:14]} Rd8 {[%emt 0:05:55]} 20. Bxe7 {[%emt 0:18:26]} Nxe7 {[%emt 0:00:08]} 21. Re2 {[%emt 0:00:33]} Kf8 {[%emt 0:00:08]} 22. Rhe1 {[%emt 0:04:40]} Nf5 {[%emt 0:00:10]} 23. Ng1 {[%emt 0:00:01]} 1/2-1/2

[Event "White Rook U14 Final 2019"]
[Site "Sochi"]
[Date "2019.06.08"]
[Round "7.14"]
[White "Vorzhevitin, Dmitriy"]
[Black "Usov, Aleksandr E."]
[Result "0-1"]
[ECO "B13"]
[WhiteElo "1346"]
[BlackElo "1812"]
[Annotator "NA"]
[PlyCount "94"]
[EventDate "2019.06.02"]
[EventCountry "RUS"]
[SourceTitle "playchess.com"]
[Source "ChessBase"]
[SourceQuality "1"]
[TimeControl "5400+30"]

1. e4 {[%emt 0:00:00]} c6 {[%emt 0:00:00]} 2. d4 {[%emt 0:00:00]} d5 {[%emt 0:00:00]} 3. exd5 {[%emt 0:00:00]} cxd5 {[%emt 0:00:00]} 4. Bd3 {[%emt 0:00:00]} Nc6 {[%emt 0:00:00]} 5. c3 {[%emt 0:00:19]} Qc7 {[%emt 0:00:00]} 6. Ne2 {[%emt 0:07:53]} Bg4 {[%emt 0:01:23]} 7. f3 {[%emt 0:00:00]} Bd7 {[%emt 0:07:25]} 8. Bf4 {[%emt 0:03:31]} Qb6 {[%emt 0:07:36]} 9. Na3 {[%emt 0:04:16]} a6 {[%emt 0:01:58]} 10. Nc2 {[%emt 0:00:55]} g6 {[%emt 0:13:31]} 11. O-O {[%emt 0:01:37]} Bg7 {[%emt 0:01:36]} 12. Kh1 {[%emt 0:02:42]} Nf6 {[%emt 0:02:05]} 13. Qd2 {[%emt 0:05:10]} O-O {[%emt 0:00:37]} 14. Bh6 {[%emt 0:03:16]} Rac8 {[%emt 0:01:34]} 15. Bxg7 {[%emt 0:02:56]} Kxg7 {[%emt 0:00:00]} 16. Ng3 {[%emt 0:03:37]} e5 {[%emt 0:03:36]} 17. Nf5+ {[%emt 0:06:07]} Bxf5 {[%emt 0:01:29]} 18. Bxf5 {[%emt 0:00:10]} Rc7 {[%emt 0:06:30]} 19. Rae1 {[%emt 0:01:39]} exd4 {[%emt 0:01:54]} 20. cxd4 {[%emt 0:01:51]} Nd8 {[%emt 0:17:59]} 21. Bd3 {[%emt 0:07:47]} Qxb2 {[%emt 0:01:03]} 22. Qf4 {[%emt 0:05:01]} Qc3 {[%emt 0:13:34]} 23. Ne3 {[%emt 0:01:13]} Ne6 {[%emt 0:00:58]} 24. Qxf6+ {[%emt 0:01:06]} Kxf6 {[%emt 0:00:34]} 25. Nxd5+ {[%emt 0:00:49]} Kg7 {[%emt 0:00:19]} 26. Nxc3 {[%emt 0:00:06]} Rxc3 {[%emt 0:00:41]} 27. d5 {[%emt 0:00:19]} Rxd3 {[%emt 0:00:05]} 28. dxe6 {[%emt 0:01:25]} f5 {[%emt 0:00:36]} 29. h3 {[%emt 0:00:07]} Kf6 {[%emt 0:01:33]} 30. Rc1 {[%emt 0:01:34]} Kxe6 {[%emt 0:00:44]} 31. Rc7 {[%emt 0:01:40]} Rf7 {[%emt 0:00:32]} 32. Re1+ {[%emt 0:00:09]} Kf6 {[%emt 0:02:44]} 33. Rec1 {[%emt 0:00:09]} Rd1+ {[%emt 0:00:57]} 34. Rxd1 {[%emt 0:00:58]} Rxc7 {[%emt 0:00:04]} 35. Rd2 {[%emt 0:00:06]} Ke5 {[%emt 0:01:59]} 36. Kg1 {[%emt 0:02:05]} b5 {[%emt 0:00:33]} 37. Kf2 {[%emt 0:00:39]} Rb7 {[%emt 0:00:15]} 38. Ke2 {[%emt 0:01:14]} a5 {[%emt 0:00:48]} 39. Kd1 {[%emt 0:00:25]} Kf4 {[%emt 0:00:40]} 40. Kc2 {[%emt 0:02:07]} Kg3 {[%emt 0:02:54]} 41. Kb3 {[%emt 0:00:18]} Re7 {[%emt 0:00:05]} 42. Kb2 {[%emt 0:03:26]} f4 {[%emt 0:00:12]} 43. Kc1 {[%emt 0:00:26]} Re1+ {[%emt 0:01:21]} 44. Kb2 {[%emt 0:03:14]} Rg1 {[%emt 0:01:28]} 45. Kb3 {[%emt 0:00:44]} Rxg2 {[%emt 0:00:20]} 46. Rd7 {[%emt 0:06:06]} Kxf3 {[%emt 0:00:16]} 47. Rxh7 {[%emt 0:00:33]} Kg3 {[%emt 0:00:45]} 0-1

[Event "White Rook U14 Final 2019"]
[Site "Sochi"]
[Date "2019.06.08"]
[Round "7.15"]
[White "Saikin, Ilia"]
[Black "Zenkov, Maksim"]
[Result "1-0"]
[ECO "D36"]
[WhiteElo "1641"]
[BlackElo "1394"]
[Annotator "NA"]
[PlyCount "87"]
[EventDate "2019.06.02"]
[EventCountry "RUS"]
[SourceTitle "playchess.com"]
[Source "ChessBase"]
[SourceQuality "1"]
[TimeControl "5400+30"]

1. d4 {[%emt 0:00:00]} e6 {[%emt 0:00:16]} 2. c4 {[%emt 0:00:24]} d5 {[%emt 0:00:08]} 3. Nc3 {[%emt 0:00:08]} Nf6 {[%emt 0:00:40]} 4. Bg5 {[%emt 0:00:00]} Nbd7 {[%emt 0:00:41]} 5. e3 {[%emt 0:00:08]} Be7 {[%emt 0:00:08]} 6. Bd3 {[%emt 0:00:49]} O-O {[%emt 0:00:00]} 7. Qc2 {[%emt 0:01:40]} c6 {[%emt 0:00:08]} 8. Nf3 {[%emt 0:00:32]} Re8 {[%emt 0:00:40]} 9. cxd5 {[%emt 0:02:54]} exd5 {[%emt 0:00:02]} 10. h3 {[%emt 0:00:00]} h6 {[%emt 0:04:34]} 11. Bf4 {[%emt 0:05:07]} Nf8 {[%emt 0:03:47]} 12. O-O {[%emt 0:01:52]} Ne6 {[%emt 0:04:17]} 13. Bh2 {[%emt 0:01:20]} Bd6 {[%emt 0:11:34]} 14. Bxd6 {[%emt 0:25:03]} Qxd6 {[%emt 0:00:00]} 15. Rad1 {[%emt 0:00:31]} Bd7 {[%emt 0:13:12]} 16. Ne5 {[%emt 0:13:43]} Rad8 {[%emt 0:10:36]} 17. f4 {[%emt 0:10:01]} Bc8 {[%emt 0:08:57]} 18. Qf2 {[%emt 0:21:04]} Nf8 {[%emt 0:09:18]} 19. g4 {[%emt 0:00:08]} N6h7 {[%emt 0:07:33]} 20. Rde1 {[%emt 0:04:08]} Re7 {[%emt 0:07:04]} 21. Ne2 {[%emt 0:06:54]} g6 {[%emt 0:01:51]} 22. Ng3 {[%emt 0:04:04]} Rc7 {[%emt 0:02:22]} 23. f5 {[%emt 0:00:30]} g5 {[%emt 0:01:23]} 24. f6 {[%emt 0:00:20]} Re8 {[%emt 0:00:09]} 25. Bf5 {[%emt 0:00:40]} Qxf6 {[%emt 0:00:40]} 26. Bxh7+ {[%emt 0:00:30]} Nxh7 {[%emt 0:00:06]} 27. Qxf6 {[%emt 0:00:20]} Nxf6 {[%emt 0:00:03]} 28. Rxf6 {[%emt 0:00:09]} Re6 {[%emt 0:00:02]} 29. Ref1 {[%emt 0:01:01]} Rxf6 {[%emt 0:00:41]} 30. Rxf6 {[%emt 0:00:30]} c5 {[%emt 0:00:08]} 31. Nd3 {[%emt 0:00:19]} c4 {[%emt 0:03:04]} 32. Ne5 {[%emt 0:00:25]} b5 {[%emt 0:00:10]} 33. Rc6 {[%emt 0:00:25]} Rxc6 {[%emt 0:00:24]} 34. Nxc6 {[%emt 0:00:51]} Bd7 {[%emt 0:00:02]} 35. Ne7+ {[%emt 0:00:15]} Kg7 {[%emt 0:00:30]} 36. Nxd5 {[%emt 0:00:04]} a5 {[%emt 0:00:07]} 37. e4 {[%emt 0:00:06]} b4 {[%emt 0:00:22]} 38. Nf5+ {[%emt 0:00:34]} Kf8 {[%emt 0:00:11]} 39. Nd6 {[%emt 0:00:35]} a4 {[%emt 0:00:19]} 40. Nxc4 {[%emt 0:01:23]} Bb5 {[%emt 0:00:15]} 41. Nd2 {[%emt 0:00:28]} a3 {[%emt 0:00:42]} 42. b3 {[%emt 0:00:32]} Be2 {[%emt 0:00:39]} 43. Nxb4 {[%emt 0:00:25]} Bd1 {[%emt 0:00:19]} 44. Kf2 {[%emt 0:00:16]} 1-0

[Event "White Rook U14 Final 2019"]
[Site "Sochi"]
[Date "2019.06.08"]
[Round "7.16"]
[White "Golikova, Alisa"]
[Black "Krupnova, Anna"]
[Result "1/2-1/2"]
[ECO "B13"]
[WhiteElo "1252"]
[BlackElo "1714"]
[Annotator "NA"]
[PlyCount "47"]
[EventDate "2019.06.02"]
[EventCountry "RUS"]
[SourceTitle "playchess.com"]
[Source "ChessBase"]
[SourceQuality "1"]
[TimeControl "5400+30"]

1. e4 {[%emt 0:00:00]} c6 {[%emt 0:00:00]} 2. d4 {[%emt 0:00:00]} d5 {[%emt 0:00:00]} 3. exd5 {[%emt 0:00:00]} cxd5 {[%emt 0:00:00]} 4. Bd3 {[%emt 0:00:00]} Nc6 {[%emt 0:00:31]} 5. c3 {[%emt 0:00:00]} Qc7 {[%emt 0:01:23]} 6. h3 {[%emt 0:04:31]} Nf6 {[%emt 0:05:37]} 7. Nf3 {[%emt 0:02:17]} e6 {[%emt 0:05:20]} 8. O-O {[%emt 0:05:24]} Be7 {[%emt 0:06:49]} 9. Re1 {[%emt 0:01:41]} O-O {[%emt 0:00:23]} 10. Nbd2 {[%emt 0:04:25]} Rb8 {[%emt 0:05:13]} 11. Qc2 {[%emt 0:03:09]} Bd7 {[%emt 0:06:41]} 12. Ne5 {[%emt 0:02:16]} Rfc8 {[%emt 0:04:57]} 13. Qb1 {[%emt 0:01:57]} b5 {[%emt 0:09:57]} 14. a3 {[%emt 0:07:25]} a5 {[%emt 0:04:41]} 15. b4 {[%emt 0:02:54]} a4 {[%emt 0:08:30]} 16. Ndf3 {[%emt 0:02:56]} h6 {[%emt 0:02:53]} 17. Bd2 {[%emt 0:07:06]} Nd8 {[%emt 0:03:32]} 18. Qc2 {[%emt 0:03:27]} Be8 {[%emt 0:05:40]} 19. Rac1 {[%emt 0:02:12]} Nb7 {[%emt 0:00:42]} 20. Bf4 {[%emt 0:02:28]} Qb6 {[%emt 0:00:45]} 21. Qe2 {[%emt 0:00:30]} Nd6 {[%emt 0:13:05]} 22. Nd2 {[%emt 0:12:12]} Rb7 {[%emt 0:01:42]} 23. Rc2 {[%emt 0:02:59]} Rbc7 {[%emt 0:02:43]} 24. Rec1 {[%emt 0:00:49]} 1/2-1/2

[Event "White Rook U14 Final 2019"]
[Site "Sochi"]
[Date "2019.06.08"]
[Round "7.17"]
[White "Balashov, Arseny"]
[Black "Erastov, Semen"]
[Result "1-0"]
[ECO "D94"]
[WhiteElo "1990"]
[BlackElo "2028"]
[Annotator "NA"]
[PlyCount "43"]
[EventDate "2019.06.02"]
[EventCountry "RUS"]
[SourceTitle "playchess.com"]
[Source "ChessBase"]
[SourceQuality "1"]
[TimeControl "5400+30"]

1. Nf3 {[%emt 0:00:00]} d5 {[%emt 0:00:00]} 2. e3 {[%emt 0:00:00]} g6 {[%emt 0:00:21]} 3. c4 {[%emt 0:00:06]} Nf6 {[%emt 0:00:38]} 4. cxd5 {[%emt 0:01:41]} Nxd5 {[%emt 0:01:04]} 5. Nc3 {[%emt 0:01:39]} Bg7 {[%emt 0:00:28]} 6. d4 {[%emt 0:09:09]} O-O {[%emt 0:02:11]} 7. Bc4 {[%emt 0:06:38]} Nxc3 {[%emt 0:01:18]} 8. bxc3 {[%emt 0:00:00]} c5 {[%emt 0:00:07]} 9. O-O {[%emt 0:00:24]} Nc6 {[%emt 0:00:30]} 10. Ba3 {[%emt 0:04:55]} cxd4 {[%emt 0:00:23]} 11. cxd4 {[%emt 0:03:00]} Bf5 {[%emt 0:02:19]} 12. Bd3 {[%emt 0:06:35]} Qd7 {[%emt 0:09:39]} 13. Rb1 {[%emt 0:01:35]} Bxd3 {[%emt 0:00:23]} 14. Qxd3 {[%emt 0:00:02]} Rfd8 {[%emt 0:00:56]} 15. Qb5 {[%emt 0:06:28]} b6 {[%emt 0:01:16]} 16. Rfc1 {[%emt 0:02:39]} Rac8 {[%emt 0:00:05]} 17. h3 {[%emt 0:01:00]} e6 {[%emt 0:00:11]} 18. Rc2 {[%emt 0:09:23]} Qb7 {[%emt 0:13:59]} 19. Rbc1 {[%emt 0:10:08]} a6 {[%emt 0:03:02]} 20. Qg5 {[%emt 0:03:47]} Na7 {[%emt 0:05:13]} 21. Rc7 {[%emt 0:00:00]} Qb8 {[%emt 0:08:11]} 22. Qe7 {[%emt 0:00:34]} 1-0

[Event "White Rook U14 Final 2019"]
[Site "Sochi"]
[Date "2019.06.08"]
[Round "7.18"]
[White "Zhukov, Maksim"]
[Black "Mikheev, Arsenii E."]
[Result "1-0"]
[ECO "D36"]
[WhiteElo "1986"]
[BlackElo "1500"]
[Annotator "NA"]
[PlyCount "57"]
[EventDate "2019.06.02"]
[EventCountry "RUS"]
[SourceTitle "playchess.com"]
[Source "ChessBase"]
[SourceQuality "1"]
[TimeControl "5400+30"]

1. d4 {[%emt 0:00:00]} d5 {[%emt 0:00:00]} 2. c4 {[%emt 0:00:00]} e6 {[%emt 0:00:00]} 3. Nc3 {[%emt 0:00:14]} Nf6 {[%emt 0:00:00]} 4. cxd5 {[%emt 0:00:04]} exd5 {[%emt 0:00:00]} 5. Bg5 {[%emt 0:00:50]} c6 {[%emt 0:00:00]} 6. e3 {[%emt 0:00:35]} Be7 {[%emt 0:00:17]} 7. Bd3 {[%emt 0:00:00]} h6 {[%emt 0:00:11]} 8. Bh4 {[%emt 0:01:16]} Nbd7 {[%emt 0:00:08]} 9. Nge2 {[%emt 0:00:06]} Nb6 {[%emt 0:00:10]} 10. Qc2 {[%emt 0:01:45]} Be6 {[%emt 0:00:11]} 11. O-O {[%emt 0:01:01]} O-O {[%emt 0:00:11]} 12. f3 {[%emt 0:00:35]} Qd7 {[%emt 0:01:03]} 13. Rae1 {[%emt 0:03:52]} Rfe8 {[%emt 0:00:02]} 14. e4 {[%emt 0:02:12]} Nxe4 {[%emt 0:01:03]} 15. Bxe7 {[%emt 0:04:34]} Nxc3 {[%emt 0:00:20]} 16. Bh4 {[%emt 0:01:19]} Nxe2+ {[%emt 0:01:18]} 17. Rxe2 {[%emt 0:00:08]} Nc4 {[%emt 0:05:08]} 18. h3 {[%emt 0:08:00]} Nd6 {[%emt 0:00:19]} 19. g4 {[%emt 0:05:33]} f5 {[%emt 0:00:31]} 20. g5 {[%emt 0:17:47]} h5 {[%emt 0:00:46]} 21. g6 {[%emt 0:09:15]} f4 {[%emt 0:00:32]} 22. Rfe1 {[%emt 0:00:43]} Bxh3 {[%emt 0:03:06]} 23. Re7 {[%emt 0:00:30]} Rxe7 {[%emt 0:00:08]} 24. Rxe7 {[%emt 0:00:04]} Qc8 {[%emt 0:00:38]} 25. Qe2 {[%emt 0:19:22]} Qf8 {[%emt 0:04:23]} 26. Qe5 {[%emt 0:00:43]} Rd8 {[%emt 0:03:29]} 27. Qxh5 {[%emt 0:00:38]} Qxe7 {[%emt 0:03:56]} 28. Qh7+ {[%emt 0:01:10]} Kf8 {[%emt 0:02:17]} 29. Qh8# {[%emt 0:00:00]} 1-0

[Event "White Rook U14 Final 2019"]
[Site "Sochi"]
[Date "2019.06.08"]
[Round "7.19"]
[White "Klimovskikh, Nikita"]
[Black "Ermolaev, Ivan"]
[Result "0-1"]
[ECO "B33"]
[WhiteElo "1333"]
[BlackElo "1776"]
[Annotator "NA"]
[PlyCount "80"]
[EventDate "2019.06.02"]
[EventCountry "RUS"]
[SourceTitle "playchess.com"]
[Source "ChessBase"]
[SourceQuality "1"]
[TimeControl "5400+30"]

1. e4 {[%emt 0:00:00]} c5 {[%emt 0:00:00]} 2. Nf3 {[%emt 0:00:00]} Nc6 {[%emt 0:00:00]} 3. d4 {[%emt 0:00:00]} cxd4 {[%emt 0:00:00]} 4. Nxd4 {[%emt 0:00:00]} Nf6 {[%emt 0:00:00]} 5. Nc3 {[%emt 0:00:00]} e5 {[%emt 0:00:00]} 6. Ndb5 {[%emt 0:00:37]} d6 {[%emt 0:00:00]} 7. Bg5 {[%emt 0:00:00]} a6 {[%emt 0:00:00]} 8. Na3 {[%emt 0:00:08]} b5 {[%emt 0:00:00]} 9. Nd5 {[%emt 0:00:20]} Be7 {[%emt 0:00:00]} 10. Bxf6 {[%emt 0:00:26]} Bxf6 {[%emt 0:00:01]} 11. c3 {[%emt 0:00:19]} O-O {[%emt 0:00:07]} 12. Nc2 {[%emt 0:00:11]} Bg5 {[%emt 0:00:09]} 13. a4 {[%emt 0:01:09]} bxa4 {[%emt 0:00:08]} 14. Rxa4 {[%emt 0:00:09]} a5 {[%emt 0:00:03]} 15. Bc4 {[%emt 0:00:26]} Rb8 {[%emt 0:00:06]} 16. b3 {[%emt 0:00:27]} Kh8 {[%emt 0:00:09]} 17. h4 {[%emt 0:00:36]} Bh6 {[%emt 0:02:34]} 18. Nce3 {[%emt 0:04:49]} Ne7 {[%emt 0:07:57]} 19. Nxe7 {[%emt 0:06:12]} Qxe7 {[%emt 0:00:25]} 20. Nd5 {[%emt 0:00:40]} Qd8 {[%emt 0:02:16]} 21. g4 {[%emt 0:07:27]} g6 {[%emt 0:03:15]} 22. g5 {[%emt 0:00:38]} Bg7 {[%emt 0:00:10]} 23. b4 {[%emt 0:14:40]} axb4 {[%emt 0:00:16]} 24. Rxb4 {[%emt 0:01:02]} Rxb4 {[%emt 0:07:01]} 25. cxb4 {[%emt 0:00:18]} f6 {[%emt 0:01:27]} 26. gxf6 {[%emt 0:03:18]} Bxf6 {[%emt 0:00:08]} 27. Nxf6 {[%emt 0:03:28]} Qxf6 {[%emt 0:00:11]} 28. Qd2 {[%emt 0:03:00]} Qf3 {[%emt 0:00:26]} 29. Rh2 {[%emt 0:05:59]} Qxe4+ {[%emt 0:00:12]} 30. Be2 {[%emt 0:02:02]} Ba6 {[%emt 0:01:22]} 31. Rh3 {[%emt 0:03:39]} Rc8 {[%emt 0:00:45]} 32. Kf1 {[%emt 0:03:26]} Rc2 {[%emt 0:04:30]} 33. Qxc2 {[%emt 0:02:37]} Qxc2 {[%emt 0:00:06]} 34. Bxa6 {[%emt 0:00:13]} Qb1+ {[%emt 0:00:34]} 35. Kg2 {[%emt 0:00:51]} Qxb4 {[%emt 0:00:18]} 36. h5 {[%emt 0:01:14]} Qg4+ {[%emt 0:01:57]} 37. Rg3 {[%emt 0:00:49]} Qxh5 {[%emt 0:00:00]} 38. Bd3 {[%emt 0:01:27]} d5 {[%emt 0:01:23]} 39. Rh3 {[%emt 0:02:06]} Qg4+ {[%emt 0:00:00]} 40. Rg3 {[%emt 0:00:16]} Qf4 {[%emt 0:00:51]} 0-1

[Event "White Rook U14 Final 2019"]
[Site "Sochi"]
[Date "2019.06.08"]
[Round "7.20"]
[White "Kuzmina, Varvara"]
[Black "Belova, Tatyana"]
[Result "1/2-1/2"]
[ECO "E02"]
[WhiteElo "1190"]
[BlackElo "1222"]
[Annotator "NA"]
[PlyCount "53"]
[EventDate "2019.06.02"]
[EventCountry "RUS"]
[SourceTitle "playchess.com"]
[Source "ChessBase"]
[SourceQuality "1"]
[TimeControl "5400+30"]

1. d4 {[%emt 0:00:00]} d5 {[%emt 0:00:00]} 2. c4 {[%emt 0:00:00]} e6 {[%emt 0:00:00]} 3. Nf3 {[%emt 0:00:00]} Nf6 {[%emt 0:00:00]} 4. g3 {[%emt 0:00:00]} Be7 {[%emt 0:00:00]} 5. Bg2 {[%emt 0:00:00]} O-O {[%emt 0:00:00]} 6. O-O {[%emt 0:00:06]} Nbd7 {[%emt 0:01:07]} 7. Qc2 {[%emt 0:02:03]} dxc4 {[%emt 0:05:56]} 8. Qxc4 {[%emt 0:00:42]} c5 {[%emt 0:03:21]} 9. e3 {[%emt 0:02:50]} Nb6 {[%emt 0:02:21]} 10. Qc2 {[%emt 0:01:38]} cxd4 {[%emt 0:01:44]} 11. Nxd4 {[%emt 0:00:34]} Nbd5 {[%emt 0:05:41]} 12. a3 {[%emt 0:07:06]} e5 {[%emt 0:09:38]} 13. Nf3 {[%emt 0:03:37]} Bd6 {[%emt 0:03:36]} 14. Rd1 {[%emt 0:06:06]} Qe7 {[%emt 0:04:25]} 15. b4 {[%emt 0:01:53]} Bg4 {[%emt 0:04:08]} 16. Re1 {[%emt 0:10:14]} Rac8 {[%emt 0:05:20]} 17. Qb3 {[%emt 0:04:12]} Bxf3 {[%emt 0:01:20]} 18. Bxf3 {[%emt 0:00:17]} e4 {[%emt 0:01:46]} 19. Bg2 {[%emt 0:03:35]} Be5 {[%emt 0:03:23]} 20. Bb2 {[%emt 0:02:33]} Bxb2 {[%emt 0:01:07]} 21. Qxb2 {[%emt 0:00:04]} Rc7 {[%emt 0:04:55]} 22. Nd2 {[%emt 0:08:35]} Rfc8 {[%emt 0:04:16]} 23. Rac1 {[%emt 0:00:18]} Nc3 {[%emt 0:02:39]} 24. Bf1 {[%emt 0:00:45]} Qe5 {[%emt 0:05:03]} 25. Kg2 {[%emt 0:01:19]} Qf5 {[%emt 0:02:01]} 26. h3 {[%emt 0:07:12]} h5 {[%emt 0:06:52]} 27. Nb1 {[%emt 0:05:21]} 1/2-1/2

[Event "White Rook U14 Final 2019"]
[Site "Sochi"]
[Date "2019.06.08"]
[Round "7.21"]
[White "Shakhov, Dmitriy"]
[Black "Sizov, Lev"]
[Result "0-1"]
[ECO "D46"]
[WhiteElo "1624"]
[BlackElo "1692"]
[Annotator "NA"]
[PlyCount "76"]
[EventDate "2019.06.02"]
[EventCountry "RUS"]
[SourceTitle "playchess.com"]
[Source "ChessBase"]
[SourceQuality "1"]
[TimeControl "5400+30"]

1. d4 {[%emt 0:00:00]} d5 {[%emt 0:00:00]} 2. c4 {[%emt 0:00:00]} e6 {[%emt 0:00:00]} 3. Nc3 {[%emt 0:00:00]} c6 {[%emt 0:00:00]} 4. e3 {[%emt 0:00:05]} Nf6 {[%emt 0:00:00]} 5. Nf3 {[%emt 0:00:05]} Bd6 {[%emt 0:00:00]} 6. Be2 {[%emt 0:00:30]} O-O {[%emt 0:00:01]} 7. O-O {[%emt 0:00:14]} Nbd7 {[%emt 0:00:18]} 8. Qc2 {[%emt 0:03:37]} dxc4 {[%emt 0:06:03]} 9. Bxc4 {[%emt 0:00:44]} e5 {[%emt 0:00:11]} 10. e4 {[%emt 0:14:32]} exd4 {[%emt 0:24:26]} 11. Nxd4 {[%emt 0:04:01]} Nb6 {[%emt 0:02:04]} 12. Qd3 {[%emt 0:06:38]} Bxh2+ {[%emt 0:24:37]} 13. Kxh2 {[%emt 0:18:19]} Ng4+ {[%emt 0:00:01]} 14. Kg1 {[%emt 0:00:07]} Ne5 {[%emt 0:00:04]} 15. Bxf7+ {[%emt 0:00:18]} Rxf7 {[%emt 0:01:17]} 16. Qd1 {[%emt 0:00:24]} Kh8 {[%emt 0:04:06]} 17. Nde2 {[%emt 0:00:35]} Qe7 {[%emt 0:02:24]} 18. f3 {[%emt 0:07:27]} Be6 {[%emt 0:08:25]} 19. Be3 {[%emt 0:11:18]} Rd8 {[%emt 0:00:33]} 20. Qc2 {[%emt 0:03:31]} Nbc4 {[%emt 0:01:00]} 21. Bf2 {[%emt 0:11:14]} Rd2 {[%emt 0:00:06]} 22. Qa4 {[%emt 0:00:25]} b5 {[%emt 0:05:28]} 23. Qa6 {[%emt 0:03:32]} Qe8 {[%emt 0:04:11]} 24. Nxb5 {[%emt 0:03:18]} cxb5 {[%emt 0:02:56]} 25. Nd4 {[%emt 0:04:19]} Rxd4 {[%emt 0:00:36]} 26. Bxd4 {[%emt 0:00:07]} Bc8 {[%emt 0:01:35]} 27. Qxa7 {[%emt 0:02:48]} Rxa7 {[%emt 0:00:03]} 28. Bxa7 {[%emt 0:00:35]} Nxb2 {[%emt 0:00:05]} 29. Rac1 {[%emt 0:00:05]} Nbc4 {[%emt 0:00:50]} 30. Rfd1 {[%emt 0:01:09]} h6 {[%emt 0:00:42]} 31. Bf2 {[%emt 0:00:00]} Nb2 {[%emt 0:00:26]} 32. Rd5 {[%emt 0:01:39]} Bb7 {[%emt 0:00:30]} 33. Rd6 {[%emt 0:01:02]} Nbc4 {[%emt 0:02:19]} 34. Rd4 {[%emt 0:01:37]} Qg6 {[%emt 0:02:19]} 35. Kf1 {[%emt 0:01:45]} Qa6 {[%emt 0:01:11]} 36. Rd8+ {[%emt 0:00:22]} Kh7 {[%emt 0:01:04]} 37. Rcd1 {[%emt 0:00:21]} Qxa2 {[%emt 0:00:29]} 38. Rb8 {[%emt 0:00:59]} Qc2 {[%emt 0:00:00]} 0-1